fUST/lending_fUST_20260427
["ID","MTS","AMOUNT","RATE_DAILY","PERIOD"]
[421216531,1777267840478,-3000.0,0.0001608,2]
[421216532,1777267840487,-3000.0,0.0001609,2]
[421216533,1777267840496,-3000.0,0.000161,2]
[421216534,1777267840506,-3000.0,0.0001611,2]
[421216535,1777267840515,-500.0,0.00016119,2]
[421216536,1777267840525,-500.0,0.00016119,2]
[421216538,1777267840534,-500.0,0.00016119,2]
[421216539,1777267840544,-500.0,0.00016119,2]
[421216540,1777267840553,-3000.0,0.0001612,2]
[421216541,1777267840565,-3000.0,0.0001613,2]
[421216542,1777267840575,-4432.252519,0.0001614,2]
[421216543,1777267840585,-1000.0,0.00016426,2]
[421216544,1777267840595,-492.0,0.00016426,2]
[421216545,1777267840604,-455.9452987,0.00016474,2]
[421216546,1777267840614,-455.9452987,0.00016497,2]
[421216547,1777267840623,-455.5449532,0.00016497,2]
[421216548,1777267840634,-455.9452987,0.00016497,2]
[421216549,1777267840643,-325.2263125,0.00016512,2]
[421216550,1777267840653,-2000.0,0.0001655,7]
[421216551,1777267840662,-6420.73606002,0.0001669,2]
[421216552,1777267840671,-5000.0,0.0001669,2]
[421216553,1777267840681,-5000.0,0.0001669,2]
[421216554,1777267840691,-5000.0,0.0001669,2]
[421216555,1777267840701,-5000.0,0.0001669,2]
[421216556,1777267840712,-151.0,0.000167,2]
[421216557,1777267840721,-151.0,0.000167,2]
[421216558,1777267840730,-784.4226201,0.0001672,2]
[421216559,1777267840740,-500.0,0.00016738,2]
[421216560,1777267840750,-500.0,0.00016738,2]
[421216561,1777267840759,-500.0,0.00016738,2]
[421216562,1777267840769,-500.0,0.00016738,2]
[421216563,1777267840779,-151.0,0.000168,2]
[421216564,1777267840789,-177.92,0.00016848,3]
[421216565,1777267840799,-16449.31650098,0.0001688,2]
[421216566,1777267840810,-200.0,0.0001689,5]
[421216567,1777267840818,-200.0,0.0001689,2]
[421216568,1777267840827,-200.90513826,0.0001689,5]
[421216569,1777267840836,-2000.0,0.00017042,7]
[421216570,1777267840845,-151.0,0.000171,2]
[421216571,1777267840855,-537.6845,0.00017106,2]
[421216572,1777267840864,-445.202766,0.00017106,2]
[421216574,1777267840874,-162.380719,0.00017106,2]
[421216575,1777267840883,-537.6845,0.00017106,2]
[421216577,1777267840893,-156.98131636,0.00017106,2]
[421216579,1777267840902,-2150.738,0.00017106,2]
[421216580,1777267840912,-1200.44975352,0.00017161,2]
[421216581,1777267840921,-557.5788265,0.00017161,2]
[421216582,1777267840930,-175.0283448,0.00017194,2]
[421216583,1777267840940,-160.0,0.00017205,7]
[421216584,1777267840949,-1306.471931,0.00017205,7]
[421216585,1777267840958,-2452.943862,0.00017205,7]
[421216586,1777267840967,-160.0,0.00017205,2]
[421216587,1777267840976,-1548.543521,0.00017205,2]
[421216588,1777267840986,-2937.087043,0.00017205,2]
[421216589,1777267840995,-422.275509,0.00017205,7]
[421216590,1777267841005,-500.0,0.00017216,2]
[421216591,1777267841014,-500.0,0.00017216,2]
[421216592,1777267841023,-500.0,0.00017216,2]
[421216593,1777267841033,-576.84109015,0.00017216,2]
[421216594,1777267841043,-578.20924308,0.00017216,2]
[421216595,1777267841052,-179.19,0.00017222,3]
[421216596,1777267841063,-599.60298507,0.00017271,2]
[421216597,1777267841072,-160.0,0.00017301,7]
[421216598,1777267841082,-778.43008926,0.00017301,7]
[421216599,1777267841114,-4608.45898174,0.00017301,7]
[421216600,1777267841123,-10613.778142,0.00017301,7]
[421216601,1777267841133,-621.78829552,0.00017326,2]
[421216602,1777267841142,-151.0776217,0.00017381,2]
[421216603,1777267841152,-644.79446246,0.00017381,2]
[421216604,1777267841162,-668.65185757,0.00017436,2]
[421216605,1777267841171,-1906.0,0.00017454,2]
[421216606,1777267841181,-693.3919763,0.00017491,2]
[421216607,1777267841191,-151.0,0.000175,2]
[421216608,1777267841200,-151.0,0.000175,2]
[421216609,1777267841210,-2000.0,0.00017535,7]
[421216610,1777267841219,-719.04747942,0.00017546,2]
[421216611,1777267841228,-500.0,0.00017556,2]
[421216612,1777267841238,-500.0,0.00017556,2]
[421216613,1777267841247,-500.0,0.00017556,2]
[421216614,1777267841257,-500.0,0.00017556,2]
[421216615,1777267841266,-500.0,0.00017556,2]
[421216616,1777267841275,-500.0,0.00017556,2]
[421216617,1777267841285,-500.0,0.00017556,2]
[421216618,1777267841294,-500.0,0.00017556,2]
[421216619,1777267841304,-500.0,0.00017556,2]
[421216620,1777267841315,-518.95201384,0.00017556,2]
[421216621,1777267841325,-1906.0,0.00017594,2]
[421216622,1777267841335,-151.0,0.000176,2]
[421216623,1777267841345,-151.0,0.000176,2]
[421216624,1777267841355,-170.06076257,0.000176,2]
[421216625,1777267841364,-619.36979291,0.00017601,2]
[421216626,1777267841374,-160.0,0.00017612,2]
[421216627,1777267841384,-469.48671441,0.00017654,2]
[421216628,1777267841394,-557.5788265,0.00017654,2]
[421216629,1777267841404,-2230.315306,0.00017654,2]
[421216630,1777267841414,-500.0,0.00017671,5]
[421216631,1777267841423,-500.0,0.00017685,2]
[421216632,1777267841432,-168.46970138,0.00017685,2]
[421216633,1777267841444,-331.53029862,0.00017685,2]
[421216634,1777267841454,-500.0,0.00017685,2]
[421216635,1777267841463,-1906.0,0.00017745,2]
[421216636,1777267841472,-659.4229082,0.00017787,2]
[421216637,1777267841768,-1246.5770918,0.00017787,2]
[421216638,1777267841778,-170.06076257,0.000178,2]
[421216639,1777267841787,-151.0,0.000178,2]
[421216640,1777267841797,-500.0,0.00017865,2]
[421216641,1777267841810,-500.0,0.00017865,2]
[421216642,1777267841819,-335.07318521,0.00017865,2]
[421216643,1777267841829,-155.0,0.00017899,2]
[421216644,1777267841838,-151.0,0.000179,2]
[421216645,1777267841847,-312.0,0.00017902,2]
[421216646,1777267841857,-1906.0,0.00017929,2]
[421216647,1777267841866,-1359.0236465,0.00017957,2]
[421216648,1777267841878,-546.9763535,0.00017957,2]
[421216649,1777267841888,-181.49,0.00017982,3]
[421216650,1777267841898,-170.06076257,0.00018,2]
[421216651,1777267841908,-2000.0,0.00018028,7]
[421216652,1777267841918,-155.0,0.00018048,2]
[421216653,1777267841928,-2672.32895,0.00018065,7]
[421216654,1777267841938,-2111.650257,0.00018065,2]
[421216655,1777267841948,-191.943413,0.00018065,7]
[421216656,1777267841958,-1000.0,0.00018068,2]
[421216657,1777267841968,-791.0,0.00018068,2]
[421216658,1777267841978,-407.89,0.00018096,2]
[421216659,1777267841988,-1906.0,0.00018096,2]
[421216660,1777267841997,-151.0,0.000181,2]
[421216661,1777267842007,-1906.0,0.000181,2]
[421216662,1777267842018,-1906.0,0.00018124,2]
[421216663,1777267842027,-500.0,0.00018127,2]
[421216664,1777267842037,-500.0,0.00018127,2]
[421216665,1777267842047,-7345.757824,0.00018166,7]
[421216666,1777267842059,-160.0,0.00018184,3]
[421216667,1777267842069,-155.0,0.00018197,2]
[421216668,1777267842080,-467.794789,0.00018202,2]
[421216669,1777267842089,-467.794789,0.00018202,2]
[421216670,1777267842099,-467.794789,0.00018202,2]
[421216671,1777267842109,-467.794789,0.00018202,2]
[421216672,1777267842119,-5000.0,0.00018202,2]
[421216673,1777267842129,-5000.0,0.00018202,2]
[421216674,1777267842139,-3387.875916,0.00018202,2]
[421216675,1777267842148,-578.20924308,0.00018202,2]
[421216676,1777267842158,-2312.83697232,0.00018202,2]
[421216677,1777267842168,-327.0010376,0.00018296,2]
[421216678,1777267842177,-455.7724459,0.00018296,2]
[421216679,1777267842189,-151.0,0.000183,2]
[421216680,1777267842199,-155.0,0.00018346,2]
[421216681,1777267842210,-151.0,0.000184,2]
[421216682,1777267842219,-151.0,0.000184,2]
[421216683,1777267842229,-151.0,0.0001841,2]
[421216684,1777267842239,-189.343931,0.0001841,2]
[421216685,1777267842248,-189.343931,0.0001841,2]
[421216686,1777267842259,-189.343931,0.0001841,2]
[421216687,1777267842268,-151.0,0.0001841,2]
[421216688,1777267842278,-189.343931,0.0001841,2]
[421216689,1777267842288,-151.0,0.0001841,2]
[421216690,1777267842298,-435.031288,0.0001841,2]
[421216691,1777267842309,-435.031288,0.0001841,2]
[421216692,1777267842319,-435.031288,0.0001841,2]
[421216693,1777267842328,-435.031288,0.0001841,2]
[421216694,1777267842338,-173.15,0.00018416,2]
[421216695,1777267842348,-155.0,0.00018496,2]
[421216696,1777267842358,-151.0,0.000185,2]
[421216697,1777267842368,-2000.0,0.00018521,7]
[421216699,1777267842378,-2009.17862848,0.00018525,2]
[421216707,1777267843906,-38276.97931851,0.00018525,2]
[421216708,1777267843971,-2318.61788315,0.00018525,2]
[421216709,1777267843984,-2029.20787857,0.00018525,2]
[421216710,1777267843996,-1154.60528768,0.00018525,2]
[421216711,1777267844008,-1598.04860122,0.00018525,2]
[421216712,1777267844020,-1867.36118784,0.00018525,2]
[421216713,1777267844032,-396.54944253,0.00018525,2]
[421216714,1777267844075,-25.76022506,0.00018525,2]
[421216715,1777267844087,-3449.03,0.00018525,2]
[421216716,1777267844099,-359.66901507,0.00018525,2]
[421216725,1777267846553,-152.0,0.00011072,7]
[421216726,1777267846566,-6282.20714139,0.00018525,2]
[421216727,1777267847332,-17.63758604,0.00018525,2]
[421216728,1777267847343,-607.38423991,0.00018525,2]
[421216729,1777267847382,-81.45155276,0.00018525,2]
[421216730,1777267847401,-7841.31019295,0.00018525,2]
[421216731,1777267847416,-39926.22532324,0.00018525,2]
[421216733,1777267899986,-151.0,0.000108,2]
[421216738,1777268951092,-1461.9227403,7.448e-05,2]
[421216739,1777268970126,-1688.05533444,7.448e-05,2]
[421216740,1777268970149,-5000.0,7.523e-05,2]
[421216741,1777268970171,-150.0,7.599e-05,2]
[421216742,1777268970191,-300.0,7.809e-05,2]
[421216743,1777268970211,-300.0,7.809e-05,2]
[421216744,1777268970233,-300.0,8.589e-05,2]
[421216745,1777268970254,-910.28923564,8.59e-05,2]
[421216772,1777269032193,-5000.0,8.504e-05,2]
[421216774,1777269032203,-252.99892324,9.288e-05,2]
[421216776,1777269032212,-177.0,9.599e-05,2]
[421216778,1777269032222,-300.0,9.999e-05,2]
[421216780,1777269032232,-1200.0,9.999e-05,2]
[421216782,1777269032241,-2181.20951647,0.0001,2]
[421216784,1777269032253,-305.03186226,0.0001,2]
[421216790,1777269032302,-355.5,0.0001,2]
[421216816,1777269032535,-10734.34895031,0.0001,2]
[421216818,1777269032545,-1345.39055161,0.0001,2]
[421216820,1777269032554,-26840.26049808,0.0001,2]
[421216833,1777269039615,-2226.62776684,0.0001,2]
[421216834,1777269039625,-420.0,0.00010999,2]
[421216835,1777269039634,-969.33763934,0.00010999,2]
[421216836,1777269039646,-207.66236066,0.00010999,2]
[421216837,1777269039656,-204.0,0.00011599,2]
[421216838,1777269039665,-420.0,0.00012099,2]
[421216839,1777269039675,-547.05413424,0.000129,2]
[421216840,1777269039776,-789.33977954,0.000129,2]
[421216841,1777269039786,-1336.39391374,0.000129,2]
[421216842,1777269039796,-1336.39391374,0.00013227,2]
[421216843,1777269039806,-500.0,0.00013423,2]
[421216844,1777269039815,-500.0,0.00013423,2]
[421216845,1777269039825,-500.0,0.00013423,2]
[421216846,1777269039835,-500.0,0.00013423,2]
[421216847,1777269039844,-500.0,0.00013423,2]
[421216848,1777269039854,-500.0,0.00013423,2]
[421216849,1777269039863,-500.0,0.00013423,2]
[421216850,1777269039873,-500.0,0.00013423,2]
[421216851,1777269039883,-500.0,0.00013423,2]
[421216852,1777269039892,-470.47523556,0.00013423,2]
[421216853,1777269039902,-184.92344275,0.00013423,2]
[421216854,1777269039911,-500.0,0.00013423,2]
[421216855,1777269039921,-418.23860745,0.00013423,2]
[421216856,1777269039931,-500.0,0.00013423,2]
[421216858,1777269039941,-309.3060284,0.00013423,2]
[421216860,1777269039950,-500.0,0.00013423,2]
[421216861,1777269039961,-500.0,0.00013423,2]
[421216862,1777269039970,-500.0,0.00013423,2]
[421216863,1777269039980,-500.0,0.00013423,2]
[421216864,1777269039990,-160.54317933,0.00013424,2]
[421216866,1777269039999,-151.5,0.00013424,2]
[421216867,1777269040009,-151.5,0.00013424,2]
[421216868,1777269040018,-181.04186285,0.00013424,2]
[421216869,1777269040027,-164.63688705,0.00013424,2]
[421216870,1777269040036,-500.0,0.00013424,2]
[421216871,1777269040045,-500.0,0.00013424,2]
[421216872,1777269040055,-393.01507182,0.00013424,2]
[421216873,1777269040064,-500.0,0.00013424,2]
[421216874,1777269040074,-292.52238375,0.00013424,2]
[421216875,1777269040083,-500.0,0.00013424,2]
[421216876,1777269040092,-500.0,0.00013424,2]
[421216877,1777269040102,-500.0,0.00013424,2]
[421216878,1777269040111,-473.31547581,0.00013424,2]
[421216879,1777269040120,-151.5,0.00013424,2]
[421216880,1777269040130,-151.5,0.00013424,2]
[421216881,1777269040139,-233.18909576,0.00013424,2]
[421216882,1777269040149,-151.5,0.00013424,2]
[421216883,1777269040159,-161.67783548,0.00013598,2]
[421216884,1777269040168,-231.0,0.00013599,2]
[421216885,1777269040178,-500.0,0.00013697,2]
[421216886,1777269040188,-573.84,0.00013698,2]
[421216887,1777269040198,-573.84,0.00013698,2]
[421216888,1777269040207,-573.84,0.00013698,2]
[421216889,1777269040216,-573.84,0.00013698,2]
[421216890,1777269040226,-573.84,0.00013698,2]
[421216891,1777269040236,-573.84,0.00013698,2]
[421216892,1777269040246,-573.84,0.00013698,2]
[421216893,1777269040255,-573.84,0.00013698,2]
[421216894,1777269040264,-573.84,0.00013698,2]
[421216895,1777269040274,-573.84,0.00013698,2]
[421216896,1777269040283,-573.84,0.00013698,2]
[421216897,1777269040293,-573.84,0.00013698,2]
[421216898,1777269040302,-573.84,0.00013698,2]
[421216899,1777269040312,-500.0,0.00013698,2]
[421216900,1777269040322,-500.0,0.00013698,2]
[421216901,1777269040331,-500.0,0.00013698,2]
[421216902,1777269040340,-500.0,0.00013698,2]
[421216903,1777269040349,-500.0,0.00013698,2]
[421216904,1777269040358,-500.0,0.00013698,2]
[421216905,1777269040367,-500.0,0.00013698,2]
[421216906,1777269040377,-500.0,0.00013698,2]
[421216907,1777269040387,-500.0,0.00013698,2]
[421216908,1777269040396,-500.0,0.00013698,2]
[421216909,1777269040406,-500.0,0.00013698,2]
[421216911,1777269040415,-427.6,0.00013698,2]
[421216912,1777269040424,-500.0,0.00013698,2]
[421216913,1777269040434,-500.0,0.00013698,2]
[421216914,1777269040443,-500.0,0.00013698,2]
[421216915,1777269040452,-500.0,0.00013698,2]
[421216916,1777269040462,-500.0,0.00013698,2]
[421216918,1777269040471,-500.0,0.00013698,2]
[421216920,1777269040481,-500.0,0.00013698,2]
[421216922,1777269040490,-500.0,0.00013698,2]
[421216923,1777269040499,-500.0,0.00013698,2]
[421216924,1777269040509,-500.0,0.00013698,2]
[421216925,1777269040518,-500.0,0.00013698,2]
[421216926,1777269040527,-500.0,0.00013698,2]
[421216927,1777269040536,-500.0,0.00013698,2]
[421216928,1777269040545,-500.0,0.00013698,2]
[421216929,1777269040554,-219.40842276,0.00013698,2]
[421216930,1777269040566,-280.59157724,0.00013698,2]
[421216931,1777269040575,-500.0,0.00013698,2]
[421216932,1777269040585,-1000.0,0.00013699,2]
[421216933,1777269040594,-573.84,0.00013852,2]
[421216934,1777269040603,-500.0,0.00013971,2]
[421216935,1777269040613,-600.0,0.00013971,2]
[421216936,1777269040622,-500.0,0.00014245,2]
[421216937,1777269040632,-500.0,0.00014245,2]
[421216938,1777269040641,-230.53743243,0.00014245,2]
[421216939,1777269040652,-269.46256757,0.00014245,2]
[421216940,1777269040662,-151.0,0.0001427,2]
[421216941,1777269040671,-573.84,0.00014323,2]
[421216942,1777269040680,-500.0,0.00014519,2]
[421216943,1777269040690,-500.0,0.00014793,2]
[421216944,1777269040699,-1336.39391374,0.0001489,2]
[421216945,1777269040708,-161.67783548,0.00014968,2]
[421216946,1777269040717,-500.0,0.00015067,2]
[421216947,1777269040726,-353.60228455,0.00015341,2]
[421216948,1777269040736,-720.0,0.00015368,2]
[421216949,1777269040745,-258.0,0.00015599,2]
[421216951,1777269040754,-573.84,0.00016099,2]
[421216953,1777269040763,-161.67783548,0.00016338,2]
[421216955,1777269040772,-500.0,0.00016414,2]
[421216956,1777269040781,-500.0,0.00016414,2]
[421216957,1777269040791,-573.84,0.00016425,2]
[421216959,1777269040800,-449.02602927,0.00016528,2]
[421216961,1777269040809,-537.6845,0.00016528,2]
[421216962,1777269040818,-268.53823729,0.00016528,2]
[421216964,1777269040827,-537.6845,0.00016528,2]
[421216965,1777269040837,-2150.738,0.00016528,2]
[421216966,1777269040846,-1336.39391374,0.00016553,2]
[421216967,1777269040856,-557.5788265,0.00016583,2]
[421216968,1777269040867,-195.77189227,0.00016638,2]
[421216969,1777269040876,-573.84,0.00016689,2]
[421216970,1777269040885,-152.0,0.00016795,7]
[421216971,1777269040895,-152.0,0.00016812,7]
[421216972,1777269040904,-573.84,0.00016879,2]
[421216973,1777269040914,-178.27010657,0.00016904,2]
[421216974,1777269040924,-500.0,0.00016904,2]
[421216975,1777269040933,-500.0,0.00016904,2]
[421216976,1777269040942,-500.0,0.00016904,2]
[421216977,1777269040952,-500.0,0.00016904,2]
[421216978,1777269040961,-500.0,0.00016904,2]
[421216979,1777269040971,-500.0,0.00016904,2]
[421216980,1777269040980,-500.0,0.00016904,2]
[421216981,1777269040989,-500.0,0.00016904,2]
[421216982,1777269040998,-500.0,0.00016904,2]
[421216983,1777269041008,-500.0,0.00016904,2]
[421216984,1777269041018,-500.0,0.00016904,2]
[421216985,1777269041027,-500.0,0.00016904,2]
[421216986,1777269041036,-500.0,0.00016904,2]
[421216987,1777269041047,-864.0,0.00016905,2]
[421216988,1777269041056,-160.0,0.00017065,3]
[421216989,1777269041067,-514.27829909,0.00017076,2]
[421216990,1777269041077,-2230.315306,0.00017076,2]
[421216991,1777269041087,-198.63,0.00017094,2]
[421216992,1777269041096,-573.84,0.00017204,2]
[421216993,1777269041106,-573.84,0.00017204,2]
[421216994,1777269041115,-573.84,0.00017204,2]
[421216995,1777269041124,-573.84,0.00017204,2]
[421216996,1777269041133,-574.02390043,0.00017204,2]
[421216997,1777269041143,-198.63,0.00017363,2]
[421216998,1777269041153,-151.0,0.00017494,2]
[421216999,1777269041162,-500.0,0.0001751,2]
[421217000,1777269041171,-500.0,0.0001751,2]
[421217001,1777269041180,-285.0,0.00017599,2]
[421217002,1777269041189,-2312.83697232,0.00017624,2]
[421217003,1777269041199,-161.67783548,0.00017708,2]
[421217004,1777269041208,-665.0,0.00017799,2]
[421217005,1777269041217,-500.0,0.00017845,5]
[421217006,1777269041226,-248.29,0.000179,2]
[421217007,1777269041236,-326.312,0.00017902,2]
[421217008,1777269041246,-665.0,0.00017982,2]
[421217009,1777269041255,-559.28238304,0.00018,2]
[421217010,1777269041264,-665.0,0.00018001,2]
[421217011,1777269041274,-500.0,0.00018058,2]
[421217012,1777269041283,-665.0,0.00018085,2]
[421217013,1777269041292,-665.0,0.00018096,2]
[421217014,1777269041301,-665.0,0.00018104,2]
[421217015,1777269041311,-165.291217,0.00018155,2]
[421217016,1777269041320,-160.0,0.00018155,7]
[421217017,1777269041329,-264.252491,0.00018155,7]
[421217018,1777269041338,-368.504982,0.00018155,7]
[421217019,1777269041347,-160.0,0.00018155,2]
[421217020,1777269041357,-249.084606,0.00018155,2]
[421217021,1777269041365,-338.169213,0.00018155,2]
[421217022,1777269041374,-160.0,0.00018155,7]
[421217023,1777269041384,-1077.280527,0.00018155,7]
[421217024,1777269041393,-1660.37619914,0.00018155,7]
[421217025,1777269041406,-334.18485486,0.00018155,7]
[421217026,1777269041415,-2398.4119403,0.00018172,2]
[421217027,1777269041425,-160.0,0.00018184,4]
[421217028,1777269041434,-1336.39391374,0.00018216,2]
[421217029,1777269041443,-500.0,0.0001825,2]
[421217030,1777269041452,-500.0,0.0001825,2]
[421217031,1777269041462,-665.0,0.00018285,2]
[421217032,1777269041471,-244.1891963,0.00018316,2]
[421217033,1777269041480,-665.0,0.00018321,2]
[421217034,1777269041489,-665.0,0.0001833,2]
[421217035,1777269041498,-665.0,0.00018446,2]
[421217036,1777269041507,-665.0,0.00018447,2]
[421217037,1777269041517,-2172.8871002,0.00018459,2]
[421217038,1777269041526,-646.0,0.00018466,2]
[421217039,1777269041535,-1408.0,0.00018466,2]
[421217040,1777269041544,-265.169,0.00018466,2]
[421217041,1777269041553,-151.055,0.00018466,2]
[421217042,1777269041563,-500.0,0.00018495,2]
[421217043,1777269041572,-967.34545417,0.000185,5]
[421217044,1777269041652,-332.81884586,0.000183,2]
[421217052,1777269043307,-405.18115414,0.000183,2]
[421217053,1777269043317,-39.85454583,0.000185,5]
[421217054,1777269043327,-361.0340857,0.000185,7]
[421217063,1777269048455,-638.9659143,0.000185,7]
[421217064,1777269048465,-665.0,0.00018507,2]
[421217065,1777269048475,-500.0,0.00018524,2]
[421217066,1777269048485,-500.0,0.00018524,2]
[421217067,1777269048494,-440.6243223,0.00018524,2]
[421217068,1777269048506,-130.44405371,0.00018524,2]
[421217069,1777269048516,-500.0,0.00018524,2]
[421217071,1777269048526,-500.0,0.00018524,2]
[421217072,1777269048536,-500.0,0.00018524,2]
[421217073,1777269048545,-500.0,0.00018524,2]
[421217074,1777269048555,-500.0,0.00018524,2]
[421217075,1777269048565,-500.0,0.00018524,2]
[421217076,1777269048574,-500.0,0.00018524,2]
[421217077,1777269048584,-500.0,0.00018524,2]
[421217078,1777269048594,-397.71,0.00018524,2]
[421217079,1777269048603,-89375.93276375,0.00018525,2]
[421217080,1777269048638,-1094.32586379,0.00018525,2]
[421217081,1777269048658,-8369.64176894,0.00018525,2]
[421217082,1777269048668,-151.0,0.00018525,2]
[421217083,1777269048678,-151.0,0.00018525,2]
[421217084,1777269048688,-151.0,0.00018525,2]
[421217085,1777269048697,-151.0,0.00018525,2]
[421217086,1777269048707,-151.0,0.00018525,2]
[421217087,1777269048716,-151.0,0.00018525,2]
[421217088,1777269048726,-7.98022057,0.00018525,2]
[421217090,1777269269605,-194.0,0.00025755,120]
[421217091,1777269269644,-300.0,0.00025755,120]
[421217092,1777269269682,-8766.0,0.00025755,120]
[421217093,1777269269721,-187.4437198,0.00025755,120]
[421217094,1777269269762,-321.3133277,0.00025755,120]
[421217095,1777269269802,-321.3133277,0.00025755,120]
[421217096,1777269269843,-321.3133277,0.00025755,120]
[421217097,1777269269884,-321.3133277,0.00025755,120]
[421217098,1777269269926,-321.3133277,0.00025755,120]
[421217099,1777269269968,-321.3133277,0.00025755,120]
[421217100,1777269270010,-321.3133277,0.00025755,120]
[421217101,1777269270053,-321.3133277,0.00025755,120]
[421217102,1777269270096,-305.62124572,0.00025755,120]
[421217103,1777269270141,-303.86374942,0.00025755,120]
[421217104,1777269270184,-305.62124572,0.00025755,120]
[421217105,1777269270228,-303.86374942,0.00025755,120]
[421217106,1777269270271,-305.62124572,0.00025755,120]
[421217107,1777269270315,-303.86374942,0.00025755,120]
[421217108,1777269270359,-305.62124572,0.00025755,120]
[421217109,1777269270403,-303.86374942,0.00025755,120]
[421217110,1777269270448,-305.62124572,0.00025755,120]
[421217111,1777269270491,-303.86374942,0.00025755,120]
[421217112,1777269270535,-305.62124572,0.00025755,120]
[421217113,1777269270577,-303.86374942,0.00025755,120]
[421217114,1777269270620,-305.62124572,0.00025755,120]
[421217115,1777269270662,-303.86374942,0.00025755,120]
[421217116,1777269270704,-305.62124572,0.00025755,120]
[421217117,1777269270748,-303.86374942,0.00025755,120]
[421217118,1777269270790,-305.62124572,0.00025755,120]
[421217119,1777269270833,-305.62124572,0.00025755,120]
[421217120,1777269270875,-305.62124572,0.00025755,120]
[421217121,1777269270917,-305.62124572,0.00025755,120]
[421217122,1777269270959,-305.62124572,0.00025755,120]
[421217123,1777269271002,-305.62124572,0.00025755,120]
[421217124,1777269271045,-305.62124572,0.00025755,120]
[421217127,1777269399916,612.9799,0.00025744,120]
[421217128,1777269399956,612.9799,0.00025744,120]
[421217129,1777269399993,612.9799,0.00025744,120]
[421217130,1777269400030,612.9799,0.00025744,120]
[421217131,1777269400067,612.9799,0.00025744,120]
[421217132,1777269400121,612.9799,0.00025744,120]
[421217133,1777269400157,612.9799,0.00025744,120]
[421217134,1777269400193,612.9799,0.00025744,120]
[421217135,1777269400230,612.9799,0.00025744,120]
[421217136,1777269400270,612.9799,0.00025744,120]
[421217137,1777269400306,612.9799,0.00025744,120]
[421217138,1777269400342,612.9799,0.00025744,120]
[421217139,1777269400381,612.9799,0.00025744,120]
[421217140,1777269400416,612.9799,0.00025744,120]
[421217141,1777269400455,612.9799,0.00025744,120]
[421217142,1777269400490,612.9799,0.00025744,120]
[421217143,1777269400526,612.9799,0.00025744,120]
[421217144,1777269400561,612.9799,0.00025744,120]
[421217145,1777269400603,612.9799,0.00025744,120]
[421217146,1777269400651,612.9799,0.00025744,120]
[421217147,1777269400695,612.9799,0.00025744,120]
[421217148,1777269400731,612.9799,0.00025744,120]
[421217149,1777269400769,612.9799,0.00025744,120]
[421217150,1777269400809,612.9799,0.00025744,120]
[421217151,1777269400845,612.9799,0.00025744,120]
[421217152,1777269400880,612.9799,0.00025744,120]
[421217153,1777269400921,612.9799,0.00025744,120]
[421217154,1777269411627,1146.51554244,0.00025744,120]
[421217155,1777269411665,296.5234656,0.00025744,120]
[421217156,1777269411704,13619.57076021,0.00025744,120]
[421217157,1777269411743,158.20971219,0.00025744,120]
[421217158,1777269411945,1146.51554244,0.00025744,120]
[421217159,1777269411985,296.5234656,0.00025744,120]
[421217160,1777269412031,13619.57076021,0.00025744,120]
[421217161,1777269412081,158.20971219,0.00025744,120]
[421217162,1777269412286,158.20971219,0.00025744,120]
[421217163,1777269412328,13619.57076021,0.00025744,120]